[Event "Khanty-Mansiysk FIDE GP (Women)"]
[Site "Khanty-Mansiysk"]
[Date "2014.04.19"]
[Round "9"]
[White "Dzagnidze, Nana"]
[Black "Stefanova, Antoaneta"]
[Result "1-0"]
[ECO "A90"]
[WhiteElo "2550"]
[BlackElo "2489"]
[Annotator "ChessBase Website"]
[PlyCount "83"]
[EventDate "2014.04.09"]
[EventType "tourn"]
[EventRounds "11"]
[EventCountry "RUS"]
[EventCategory "10"]
[SourceTitle "CBM 160"]
[Source "ChessBase"]
[SourceDate "2014.05.15"]
[SourceVersion "1"]
[SourceVersionDate "2014.05.15"]
[SourceQuality "1"]
[TimeControl "40/5400+30:1800+30"]
[WhiteClock "1:30:00"]
[BlackClock "1:30:00"]

1. d4 {[%emt 0:00:00]} d5 {[%emt 0:00:00]} 2. c4 {[%emt 0:00:00]} c6 {[%emt 0:
00:00]} 3. Nf3 {[%emt 0:00:00]} e6 {[%emt 0:00:00]} 4. Nbd2 {[%emt 0:03:09]} f5
{[%emt 0:09:05]} 5. g3 {[%emt 0:09:58]} Nf6 {[%emt 0:06:48]} 6. Bg2 {[%emt 0:
05:17]} Bd6 {[%emt 0:03:36]} 7. O-O {[%emt 0:00:07]} Nbd7 {[%emt 0:06:07]} 8.
b3 {[%emt 0:19:35]} Qe7 {[%emt 0:00:51]} 9. Bb2 {[%emt 0:02:06]} b6 {[%emt 0:
03:48]} (9... Ne4 10. Qc2 O-O 11. Rad1 a5 12. Ne1 b5 13. Nxe4 fxe4 14. c5 Bc7
15. f3 exf3 16. exf3 e5 17. Nd3 exd4 18. Bxd4 b4 19. Rfe1 Qf7 20. Re3 Re8 21.
Rde1 Ba6 22. Bh3 Nf8 23. Ne5 Bxe5 24. Rxe5 Rxe5 25. Rxe5 Re8 26. Qf5 g6 27.
Qxf7+ Kxf7 28. Rxe8 Kxe8 29. Kf2 Bd3 30. Be5 Nd7 31. Bxd7+ Kxd7 32. Ke3 Bb1 {
1/2-1/2 (32) Portisch,L (2523)-Vaganian,R (2617) Bazna 2008}) 10. cxd5 $146 {
[%emt 0:06:18]} (10. Ne5 Bb7 11. Rc1 Rc8 12. e3 O-O 13. Qe2 Ne4 14. Ndf3 Rfd8
15. Nd3 c5 16. cxd5 exd5 17. dxc5 bxc5 18. Nh4 g6 19. Ba1 Nef6 20. Rfd1 Qf7 21.
Nf4 Be5 {1/2-1/2 (21) Skomorokhin,R (2378)-Ivanov,O (2467) Vladimir 2008})
10... cxd5 {[%emt 0:07:26]} 11. Ne5 {[%emt 0:00:06]} b5 {[%emt 0:06:04]} 12.
Nc6 {[%emt 0:13:46]} Qf7 {[%emt 0:04:10]} 13. Nf3 {[%emt 0:03:53]} O-O {
[%emt 0:04:55]} 14. Qd3 {[%emt 0:01:50]} a5 {[%emt 0:03:01]} 15. Bc1 {[%emt 0:
08:37]} Bb7 {[%emt 0:04:50]} 16. Nce5 {[%emt 0:00:27]} Qe7 {[%emt 0:02:14]} 17.
Bf4 {[%emt 0:00:12]} Ne4 {[%emt 0:06:45]} 18. Rfc1 {[%emt 0:09:03]} Nxe5 {
[%emt 0:07:34]} 19. Nxe5 {[%emt 0:01:00]} g5 {[%emt 0:04:49]} 20. Bd2 {[%emt 0:
00:07]} b4 {[%emt 0:02:42]} 21. Be1 {[%emt 0:06:51]} Ba6 {[%emt 0:05:31]} 22.
Qc2 {[%emt 0:00:43]} Rac8 {[%emt 0:03:02]} 23. Qb2 {[%emt 0:00:10]} g4 {
[%emt 0:02:57]} 24. Bxe4 {[%emt 0:04:48]} dxe4 {[%emt 0:00:41]} 25. Bd2 {
[%emt 0:00:08]} Bxe5 {[%emt 0:01:25]} 26. dxe5 {[%emt 0:00:05]} h5 {[%emt 0:00:
51]} 27. Bh6 {[%emt 0:01:32]} Rfd8 {[%emt 0:01:26]} 28. Rxc8 {[%emt 0:00:09]}
Rxc8 {[%emt 0:00:04]} 29. Rd1 {[%emt 0:00:22]} Bb7 {[%emt 0:01:50]} 30. Rd6 {
[%emt 0:00:20]} Bd5 {[%emt 0:00:25]} 31. Qd2 {[%emt 0:00:13]} Kh7 {[%emt 0:00:
22]} 32. Be3 {[%emt 0:01:32]} Qc7 {[%emt 0:00:43]} 33. Rxd5 $1 {[%emt 0:00:55]
A strange Stone Wall came to an abrupt end when Dzagnidze sacrificed an
exchange for activity against Stefanova. The Bulgarian player still had some
defensive resources but for some reason she was unable to find them and her
entire position collapsed.} exd5 {[%emt 0:00:06]} 34. Qxd5 {[%emt 0:00:02]} Rd8
{[%emt 0:01:53]} 35. Qe6 {[%emt 0:00:08]} Qd7 {[%emt 0:00:42]} 36. Qh6+ {
[%emt 0:00:12]} Kg8 {[%emt 0:00:02]} 37. Qg5+ {[%emt 0:01:07]} Kh7 {[%emt 0:00:
33]} 38. Qxh5+ {[%emt 0:00:22]} Kg8 {[%emt 0:00:02]} 39. Qg5+ {[%emt 0:00:36]}
Kh7 {[%emt 0:00:22]} 40. e6 {[%emt 0:00:00]} Qd1+ {[%emt 0:00:00]} 41. Kg2 {
[%emt 0:01:25]} Rd5 {[%emt 0:09:36]} 42. Qe7+ {[%emt 0:01:48]} 1-0

[Event "Paris FIDE GP"]
[Site "Elancourt"]
[Date "2013.09.25"]
[Round "4"]
[White "Ponomariov, Ruslan"]
[Black "Tomashevsky, Evgeny"]
[Result "1/2-1/2"]
[ECO "A90"]
[WhiteElo "2756"]
[BlackElo "2706"]
[Annotator "ChessBase Website"]
[PlyCount "57"]
[EventDate "2013.09.22"]
[EventType "tourn"]
[EventRounds "11"]
[EventCountry "FRA"]
[EventCategory "20"]
[SourceTitle "CBM 157"]
[Source "ChessBase"]
[SourceDate "2013.11.12"]
[SourceVersion "1"]
[SourceVersionDate "2013.11.12"]
[SourceQuality "1"]
[TimeControl "40/7200:20/3600:900+30"]
[WhiteClock "2:00:00"]
[BlackClock "2:00:00"]

1. d4 {[%emt 0:00:03]} d5 {[%emt 0:00:08]} 2. c4 {[%emt 0:00:28]} e6 {[%emt 0:
00:07]} 3. Nf3 {[%emt 0:00:46]} c6 {[%emt 0:00:09]} 4. Nbd2 {[%emt 0:01:23]} f5
{[%emt 0:00:51] Tomashevsky recently adopted the triangle set-up against d4,
with the idea of playing a Stonewall, as his pet defense. It seems solid
enough for now as no one has really been able to break it down. Ponomariov was
actually slightly worse out of the opening but he really had no issues as
Tomashevsky was more interested in holding a solid draw with Black.} 5. g3 {
[%emt 0:01:04]} Nf6 {[%emt 0:00:51]} 6. Bg2 {[%emt 0:00:42]} Bd6 {[%emt 0:00:
10]} 7. O-O {[%emt 0:01:27]} Nbd7 {[%emt 0:00:38]} 8. b3 {[%emt 0:00:53]} O-O {
[%emt 0:04:48]} 9. Bb2 {[%emt 0:01:14]} b6 {[%emt 0:14:17]} 10. Ne5 {[%emt 0:
02:32]} Bb7 {[%emt 0:00:25]} 11. Nd3 {[%emt 0:01:27]} Qe7 {[%emt 0:04:29]} 12.
e3 {[%emt 0:02:23]} a5 {[%emt 0:08:09]} 13. Rc1 {[%emt 0:06:33]} Rfd8 {[%emt 0:
03:40]} 14. Rc2 $146 {[%emt 0:17:26]} a4 {[%emt 0:04:37]} 15. Qc1 {[%emt 0:06:
17]} axb3 {[%emt 0:02:19]} 16. axb3 {[%emt 0:00:07]} Ne4 {[%emt 0:04:35]} 17.
f3 {[%emt 0:07:00]} Nxd2 {[%emt 0:02:42]} 18. Qxd2 {[%emt 0:00:16]} c5 {
[%emt 0:00:17]} 19. f4 {[%emt 0:02:31]} Nf6 {[%emt 0:19:25]} 20. dxc5 {[%emt 0:
08:28]} Bxc5 {[%emt 0:00:19]} 21. Nxc5 {[%emt 0:05:29]} bxc5 {[%emt 0:00:20]}
22. Bxf6 {[%emt 0:01:43]} Qxf6 {[%emt 0:00:17]} 23. cxd5 {[%emt 0:02:18]} Bxd5
{[%emt 0:00:14]} 24. Qc3 {[%emt 0:05:57]} Qxc3 {[%emt 0:01:50]} 25. Rxc3 {
[%emt 0:00:05]} Ra2 {[%emt 0:02:41]} 26. Rf2 {[%emt 0:00:17]} Ra1+ {[%emt 0:00:
09]} 27. Rf1 {[%emt 0:00:04]} Ra2 {[%emt 0:00:03]} 28. Rf2 {[%emt 0:00:04]}
Ra1+ {[%emt 0:00:04]} 29. Rf1 {[%emt 0:00:09]} 1/2-1/2